[Event "Titled Tuesday Blitz June 28 Early 2022"]
[White "Dubov, Daniil"]
[Black "Xiong, Jeffery"]
[WhiteFideId "24126055"]
[BlackFideId "2047640"]
[WhiteElo "2791"]
[BlackElo "2714"]
[Result "0-1"]
[Round "10"]
[TimeControl "180+1"]
[Date "2022.06.28"]
[WhiteClock "0:00:21"]
[BlackClock "0:00:27"]

1. e4 {[%clk 0:03:00]}  e5 {[%clk 0:02:58]} 2. Nf3 {[%clk 0:03:00]}  Nf6 {[%clk 0:02:58]} 3. Nc3 {[%clk 0:03:01]}  Nc6 {[%clk 0:02:57]} 4. d4 {[%clk 0:03:02]}  exd4 {[%clk 0:02:58]} 5. Nxd4 {[%clk 0:03:02]}  Bb4 {[%clk 0:02:59]} 6. Nxc6 {[%clk 0:03:03]}  bxc6 {[%clk 0:03:00]} 7. Bd3 {[%clk 0:03:04]}  d5 {[%clk 0:03:00]} 8. exd5 {[%clk 0:03:02]}  O-O {[%clk 0:03:01]} 9. O-O {[%clk 0:03:02]}  Bg4 {[%clk 0:02:54]} 10. Ne2 {[%clk 0:03:01]}  cxd5 {[%clk 0:02:53]} 11. Bg5 {[%clk 0:02:58]}  h6 {[%clk 0:02:49]} 12. Bh4 {[%clk 0:02:58]}  Re8 {[%clk 0:02:47]} 13. c3 {[%clk 0:02:57]}  Bd6 {[%clk 0:02:47]} 14. Qc2 {[%clk 0:02:56]}  Bxe2 {[%clk 0:02:45]} 15. Bxe2 {[%clk 0:02:55]}  g5 {[%clk 0:02:43]} 16. Bg3 {[%clk 0:02:55]}  Bxg3 {[%clk 0:02:41]} 17. hxg3 {[%clk 0:02:54]}  Qd6 {[%clk 0:02:41]} 18. Rad1 {[%clk 0:02:51]}  c5 {[%clk 0:02:42]} 19. Bf3 {[%clk 0:02:28]}  Rad8 {[%clk 0:02:37]} 20. Qa4 {[%clk 0:02:23]}  Qb6 {[%clk 0:02:35]} 21. g4 {[%clk 0:02:09]}  d4 {[%clk 0:02:26]} 22. cxd4 {[%clk 0:02:06]}  cxd4 {[%clk 0:02:27]} 23. Rd2 {[%clk 0:02:05]}  h5 {[%clk 0:02:05]} 24. Qd1 {[%clk 0:01:13]}  hxg4 {[%clk 0:02:00]} 25. Bxg4 {[%clk 0:01:14]}  Kg7 {[%clk 0:01:51]} 26. Bf3 {[%clk 0:01:06]}  Qc5 {[%clk 0:01:14]} 27. Rd3 {[%clk 0:01:00]}  Rh8 {[%clk 0:01:13]} 28. g3 {[%clk 0:00:54]}  Qf5 {[%clk 0:01:13]} 29. Bg2 {[%clk 0:00:49]}  Rh6 {[%clk 0:00:30]} 30. Rxd4 {[%clk 0:00:49]}  Rdh8 {[%clk 0:00:30]} 31. Qf3 {[%clk 0:00:30]}  Qh7 {[%clk 0:00:26]} 32. Rfd1 {[%clk 0:00:27]}  g4 {[%clk 0:00:26]} 33. Qf4 {[%clk 0:00:21]}  Rh1+ {[%clk 0:00:26]} 34. Bxh1 {[%clk 0:00:21]}  Qxh1# {[%clk 0:00:27]} 0-1


[Site "https://www.chess.com"]

[Event "Titled Tuesday Blitz June 28 Early 2022"]
[White "Elgersma, Onno"]
[Black "Pourkashiyan, Atousa"]
[WhiteFideId "1053531"]
[BlackFideId "12502014"]
[WhiteElo "2304"]
[BlackElo "2247"]
[Result "1/2-1/2"]
[Round "10"]
[TimeControl "180+1"]
[Date "2022.06.28"]
[WhiteClock "0:00:19"]
[BlackClock "0:00:08"]

1. e4 {[%clk 0:03:00]}  Nf6 {[%clk 0:02:54]} 2. e5 {[%clk 0:02:51]}  Nd5 {[%clk 0:02:54]} 3. d4 {[%clk 0:02:52]}  d6 {[%clk 0:02:54]} 4. c4 {[%clk 0:02:52]}  Nb6 {[%clk 0:02:54]} 5. exd6 {[%clk 0:02:53]}  exd6 {[%clk 0:02:54]} 6. Nc3 {[%clk 0:02:51]}  Be7 {[%clk 0:02:54]} 7. Bd3 {[%clk 0:02:49]}  O-O {[%clk 0:02:54]} 8. Nge2 {[%clk 0:02:49]}  Nc6 {[%clk 0:02:53]} 9. O-O {[%clk 0:02:46]}  Bg4 {[%clk 0:02:52]} 10. f3 {[%clk 0:02:43]}  Bh5 {[%clk 0:02:52]} 11. b3 {[%clk 0:02:42]}  Bg6 {[%clk 0:02:52]} 12. Be3 {[%clk 0:02:41]}  d5 {[%clk 0:02:52]} 13. c5 {[%clk 0:02:40]}  Nd7 {[%clk 0:02:51]} 14. Nxd5 {[%clk 0:02:30]}  Nf6 {[%clk 0:02:51]} 15. Nxf6+ {[%clk 0:02:28]}  Bxf6 {[%clk 0:02:51]} 16. Bxg6 {[%clk 0:02:28]}  hxg6 {[%clk 0:02:52]} 17. Qd3 {[%clk 0:02:28]}  Re8 {[%clk 0:02:52]} 18. Rad1 {[%clk 0:02:28]}  Nb4 {[%clk 0:02:52]} 19. Qd2 {[%clk 0:02:27]}  Nxa2 {[%clk 0:02:50]} 20. Bf2 {[%clk 0:02:09]}  Rxe2 {[%clk 0:02:49]} 21. Qxe2 {[%clk 0:02:05]}  Nc3 {[%clk 0:02:50]} 22. Qc4 {[%clk 0:02:05]}  Nxd1 {[%clk 0:02:50]} 23. Rxd1 {[%clk 0:02:05]}  c6 {[%clk 0:02:43]} 24. d5 {[%clk 0:02:04]}  cxd5 {[%clk 0:02:43]} 25. Qxd5 {[%clk 0:02:04]}  Qxd5 {[%clk 0:02:26]} 26. Rxd5 {[%clk 0:02:05]}  Re8 {[%clk 0:02:27]} 27. Rd7 {[%clk 0:01:52]}  Re7 {[%clk 0:02:24]} 28. Rxe7 {[%clk 0:01:51]}  Bxe7 {[%clk 0:02:25]} 29. Kf1 {[%clk 0:01:51]}  Kf8 {[%clk 0:02:18]} 30. Ke2 {[%clk 0:01:51]}  Ke8 {[%clk 0:02:19]} 31. Kd3 {[%clk 0:01:51]}  Kd7 {[%clk 0:02:19]} 32. Kc4 {[%clk 0:01:49]}  Kc6 {[%clk 0:02:20]} 33. b4 {[%clk 0:01:50]}  a6 {[%clk 0:02:20]} 34. g4 {[%clk 0:01:50]}  Bf6 {[%clk 0:02:11]} 35. h3 {[%clk 0:01:50]}  Be5 {[%clk 0:02:11]} 36. Be1 {[%clk 0:01:50]}  Bf6 {[%clk 0:02:09]} 37. Bd2 {[%clk 0:01:50]}  Be5 {[%clk 0:02:10]} 38. Bg5 {[%clk 0:01:49]}  Ba1 {[%clk 0:02:05]} 39. Be7 {[%clk 0:01:47]}  Be5 {[%clk 0:02:04]} 40. Bg5 {[%clk 0:01:44]}  Bb2 {[%clk 0:02:04]} 41. Bd2 {[%clk 0:01:42]}  Be5 {[%clk 0:02:03]} 42. f4 {[%clk 0:01:42]}  Bb2 {[%clk 0:02:00]} 43. f5 {[%clk 0:01:38]}  gxf5 {[%clk 0:01:59]} 44. gxf5 {[%clk 0:01:39]}  Bf6 {[%clk 0:01:56]} 45. Be1 {[%clk 0:01:38]}  Be5 {[%clk 0:01:52]} 46. h4 {[%clk 0:01:38]}  g6 {[%clk 0:01:47]} 47. fxg6 {[%clk 0:01:38]}  fxg6 {[%clk 0:01:47]} 48. Bf2 {[%clk 0:01:39]}  Bf4 {[%clk 0:01:30]} 49. Bd4 {[%clk 0:01:32]}  Bd2 {[%clk 0:01:29]} 50. Bf6 {[%clk 0:01:30]}  Kd7 {[%clk 0:01:29]} 51. b5 {[%clk 0:01:26]}  a5 {[%clk 0:01:27]} 52. Kd5 {[%clk 0:01:17]}  a4 {[%clk 0:01:12]} 53. c6+ {[%clk 0:01:17]}  bxc6+ {[%clk 0:01:12]} 54. bxc6+ {[%clk 0:01:18]}  Kc8 {[%clk 0:01:05]} 55. Bb2 {[%clk 0:01:06]}  Bb4 {[%clk 0:01:01]} 56. Ke6 {[%clk 0:00:51]}  Be1 {[%clk 0:00:44]} 57. Bf6 {[%clk 0:00:35]}  a3 {[%clk 0:00:39]} 58. Kf7 {[%clk 0:00:24]}  a2 {[%clk 0:00:39]} 59. Kxg6 {[%clk 0:00:25]}  Bxh4 {[%clk 0:00:40]} 60. Be5 {[%clk 0:00:25]}  Bg3 {[%clk 0:00:40]} 61. Ba1 {[%clk 0:00:20]}  Kc7 {[%clk 0:00:40]} 62. Kf5 {[%clk 0:00:20]}  Kxc6 {[%clk 0:00:40]} 63. Ke4 {[%clk 0:00:21]}  Kc5 {[%clk 0:00:19]} 64. Kd3 {[%clk 0:00:20]}  Kb4 {[%clk 0:00:19]} 65. Kc2 {[%clk 0:00:19]}  Ka3 {[%clk 0:00:19]} 66. Bb2+ {[%clk 0:00:18]}  Ka4 {[%clk 0:00:20]} 67. Ba1 {[%clk 0:00:18]}  Ka3 {[%clk 0:00:13]} 68. Bb2+ {[%clk 0:00:18]}  Kb4 {[%clk 0:00:13]} 69. Ba1 {[%clk 0:00:19]}  Ka3 {[%clk 0:00:08]} 1/2-1/2


[Site "https://www.chess.com"]

[Event "Titled Tuesday Blitz June 28 Early 2022"]
[White "Fecker, Noah"]
[Black "Yuan, Qingyu"]
[WhiteFideId "1334263"]
[BlackFideId "8609772"]
[WhiteElo "2312"]
[BlackElo "2359"]
[Result "0-1"]
[Round "10"]
[TimeControl "180+1"]
[Date "2022.06.28"]
[WhiteClock "0:00:12"]
[BlackClock "0:00:16"]

1. Nf3 {[%clk 0:03:00]}  d5 {[%clk 0:03:00]} 2. g3 {[%clk 0:03:00]}  c5 {[%clk 0:03:00]} 3. Bg2 {[%clk 0:03:00]}  Nc6 {[%clk 0:03:01]} 4. d4 {[%clk 0:03:00]}  Nf6 {[%clk 0:03:01]} 5. O-O {[%clk 0:03:00]}  e6 {[%clk 0:03:01]} 6. c4 {[%clk 0:02:55]}  dxc4 {[%clk 0:03:02]} 7. Qa4 {[%clk 0:02:54]}  Bd7 {[%clk 0:03:02]} 8. dxc5 {[%clk 0:02:49]}  Na5 {[%clk 0:03:02]} 9. Qc2 {[%clk 0:02:44]}  Bxc5 {[%clk 0:02:58]} 10. Na3 {[%clk 0:02:43]}  O-O {[%clk 0:02:51]} 11. Nxc4 {[%clk 0:02:42]}  Rc8 {[%clk 0:02:51]} 12. e3 {[%clk 0:02:14]}  Nxc4 {[%clk 0:02:35]} 13. Qxc4 {[%clk 0:02:13]}  Bxe3 {[%clk 0:02:36]} 14. Qb3 {[%clk 0:02:12]}  Bb6 {[%clk 0:02:26]} 15. Ne5 {[%clk 0:02:11]}  Nd5 {[%clk 0:02:09]} 16. Rd1 {[%clk 0:02:01]}  Bc6 {[%clk 0:01:59]} 17. Nxc6 {[%clk 0:01:44]}  bxc6 {[%clk 0:01:59]} 18. Be3 {[%clk 0:01:32]}  Bxe3 {[%clk 0:01:47]} 19. fxe3 {[%clk 0:01:33]}  Rb8 {[%clk 0:01:43]} 20. Qa3 {[%clk 0:01:25]}  Qb6 {[%clk 0:01:38]} 21. Bxd5 {[%clk 0:01:22]}  cxd5 {[%clk 0:01:36]} 22. Rd2 {[%clk 0:01:21]}  Rfc8 {[%clk 0:01:35]} 23. Rf1 {[%clk 0:01:19]}  Rb7 {[%clk 0:01:28]} 24. Rdf2 {[%clk 0:01:19]}  h6 {[%clk 0:01:22]} 25. Kg2 {[%clk 0:01:16]}  Rc4 {[%clk 0:01:17]} 26. Qd3 {[%clk 0:01:08]}  Qc6 {[%clk 0:01:16]} 27. b3 {[%clk 0:01:03]}  Rc3 {[%clk 0:00:59]} 28. Qd4 {[%clk 0:00:59]}  Qc5 {[%clk 0:00:58]} 29. Qa4 {[%clk 0:00:58]}  Qxe3 {[%clk 0:00:36]} 30. Qe8+ {[%clk 0:00:53]}  Kh7 {[%clk 0:00:37]} 31. Rxf7 {[%clk 0:00:40]}  Qe4+ {[%clk 0:00:37]} 32. Kg1 {[%clk 0:00:37]}  Rc2 {[%clk 0:00:32]} 33. R7f2 {[%clk 0:00:37]}  Rbc7 {[%clk 0:00:30]} 34. Qh5 {[%clk 0:00:16]}  d4 {[%clk 0:00:23]} 35. h4 {[%clk 0:00:16]}  d3 {[%clk 0:00:22]} 36. Qd1 {[%clk 0:00:14]}  Qe3 {[%clk 0:00:17]} 37. h5 {[%clk 0:00:12]}  Rxf2 {[%clk 0:00:16]} 38. Rxf2 {[%clk 0:00:12]}  Rc1 {[%clk 0:00:16]} 0-1


[Site "https://www.chess.com"]

[Event "Titled Tuesday Blitz June 28 Early 2022"]
[White "Garcia Cuenca, Victor"]
[Black "Malyi, Viacheslav"]
[WhiteFideId "2250829"]
[BlackFideId "14123983"]
[WhiteElo "2317"]
[BlackElo "2270"]
[Result "1-0"]
[Round "10"]
[TimeControl "180+1"]
[Date "2022.06.28"]
[WhiteClock "0:02:12"]
[BlackClock "0:02:16"]

1. d3 {[%clk 0:02:58]}  Nf6 {[%clk 0:02:58]} 2. Nf3 {[%clk 0:02:56]}  Nc6 {[%clk 0:02:58]} 3. g3 {[%clk 0:02:57]}  e5 {[%clk 0:02:56]} 4. Bg2 {[%clk 0:02:58]}  Bc5 {[%clk 0:02:56]} 5. O-O {[%clk 0:02:58]}  d6 {[%clk 0:02:57]} 6. c4 {[%clk 0:02:58]}  a5 {[%clk 0:02:56]} 7. Nc3 {[%clk 0:02:59]}  h5 {[%clk 0:02:56]} 8. Bg5 {[%clk 0:02:56]}  Be6 {[%clk 0:02:54]} 9. e3 {[%clk 0:02:51]}  Ba7 {[%clk 0:02:50]} 10. Nd5 {[%clk 0:02:47]}  Bxd5 {[%clk 0:02:48]} 11. cxd5 {[%clk 0:02:48]}  Ne7 {[%clk 0:02:49]} 12. d4 {[%clk 0:02:41]}  Nh7 {[%clk 0:02:43]} 13. dxe5 {[%clk 0:02:31]}  Nxg5 {[%clk 0:02:38]} 14. Nxg5 {[%clk 0:02:32]}  dxe5 {[%clk 0:02:38]} 15. Qb3 {[%clk 0:02:28]}  O-O {[%clk 0:02:32]} 16. Qxb7 {[%clk 0:02:23]}  Nf5 {[%clk 0:02:25]} 17. h4 {[%clk 0:02:14]}  Nd6 {[%clk 0:02:20]} 18. Qb3 {[%clk 0:02:13]}  Rb8 {[%clk 0:02:16]} 19. Qc2 {[%clk 0:02:13]}  Bb6 {[%clk 0:02:16]} 20. Qh7# {[%clk 0:02:12]} 1-0


[Site "https://www.chess.com"]

[Event "Titled Tuesday Blitz June 28 Early 2022"]
[White "Gatterer, Florian"]
[Black "Golubovskis, Maksims"]
[WhiteFideId "811688"]
[BlackFideId "11608528"]
[WhiteElo "2218"]
[BlackElo "2102"]
[Result "0-1"]
[Round "10"]
[TimeControl "180+1"]
[Date "2022.06.28"]
[WhiteClock "0:00:02"]
[BlackClock "0:00:05"]

1. d4 {[%clk 0:03:00]}  g6 {[%clk 0:02:57]} 2. e4 {[%clk 0:02:59]}  Bg7 {[%clk 0:02:58]} 3. Nc3 {[%clk 0:02:59]}  a6 {[%clk 0:02:55]} 4. Be3 {[%clk 0:02:59]}  b5 {[%clk 0:02:54]} 5. Nf3 {[%clk 0:02:58]}  Bb7 {[%clk 0:02:54]} 6. Bd3 {[%clk 0:02:59]}  d6 {[%clk 0:02:52]} 7. h4 {[%clk 0:02:55]}  h5 {[%clk 0:02:46]} 8. e5 {[%clk 0:02:44]}  Nd7 {[%clk 0:02:43]} 9. e6 {[%clk 0:02:42]}  Nf8 {[%clk 0:02:38]} 10. exf7+ {[%clk 0:02:32]}  Kxf7 {[%clk 0:02:37]} 11. Be4 {[%clk 0:02:26]}  Bxe4 {[%clk 0:02:33]} 12. Nxe4 {[%clk 0:02:26]}  Qd7 {[%clk 0:02:25]} 13. Neg5+ {[%clk 0:02:23]}  Ke8 {[%clk 0:02:25]} 14. Qe2 {[%clk 0:02:23]}  Nf6 {[%clk 0:02:20]} 15. O-O-O {[%clk 0:02:16]}  Qf5 {[%clk 0:02:20]} 16. Kb1 {[%clk 0:02:05]}  Kd7 {[%clk 0:02:17]} 17. Ka1 {[%clk 0:02:04]}  Ne6 {[%clk 0:02:09]} 18. c4 {[%clk 0:02:01]}  Rhb8 {[%clk 0:02:04]} 19. c5 {[%clk 0:01:50]}  Nd5 {[%clk 0:01:51]} 20. Rc1 {[%clk 0:01:45]}  c6 {[%clk 0:01:38]} 21. Nxe6 {[%clk 0:01:34]}  Qxe6 {[%clk 0:01:36]} 22. Ng5 {[%clk 0:01:33]}  Qf5 {[%clk 0:01:35]} 23. cxd6 {[%clk 0:01:32]}  exd6 {[%clk 0:01:35]} 24. Qd2 {[%clk 0:01:18]}  a5 {[%clk 0:01:31]} 25. f3 {[%clk 0:01:08]}  a4 {[%clk 0:01:17]} 26. g4 {[%clk 0:01:06]}  hxg4 {[%clk 0:01:08]} 27. fxg4 {[%clk 0:01:06]}  Qxg4 {[%clk 0:01:01]} 28. Qc2 {[%clk 0:01:03]}  Rc8 {[%clk 0:00:46]} 29. Qxg6 {[%clk 0:01:01]}  Bh8 {[%clk 0:00:27]} 30. Rhf1 {[%clk 0:00:54]}  Ne7 {[%clk 0:00:27]} 31. Rf7 {[%clk 0:00:49]}  Re8 {[%clk 0:00:18]} 32. Rg1 {[%clk 0:00:37]}  Kd8 {[%clk 0:00:06]} 33. Qxd6+ {[%clk 0:00:35]}  Qd7 {[%clk 0:00:06]} 34. Ne6+ {[%clk 0:00:23]}  Kc8 {[%clk 0:00:07]} 35. Qxd7+ {[%clk 0:00:23]}  Kxd7 {[%clk 0:00:07]} 36. Nc5+ {[%clk 0:00:23]}  Kd6 {[%clk 0:00:08]} 37. Bf4+ {[%clk 0:00:19]}  Kd5 {[%clk 0:00:08]} 38. Nd3 {[%clk 0:00:16]}  Bxd4 {[%clk 0:00:07]} 39. Rd1 {[%clk 0:00:15]}  c5 {[%clk 0:00:08]} 40. Ne5 {[%clk 0:00:15]}  Rad8 {[%clk 0:00:05]} 41. Ng4 {[%clk 0:00:11]}  a3 {[%clk 0:00:05]} 42. Kb1 {[%clk 0:00:10]}  Kc6 {[%clk 0:00:03]} 43. h5 {[%clk 0:00:09]}  axb2 {[%clk 0:00:03]} 44. h6 {[%clk 0:00:08]}  Nd5 {[%clk 0:00:03]} 45. Bg5 {[%clk 0:00:06]}  Nc3+ {[%clk 0:00:04]} 46. Kc2 {[%clk 0:00:06]}  Nxd1 {[%clk 0:00:05]} 47. Ne5+ {[%clk 0:00:05]}  Rxe5 {[%clk 0:00:04]} 48. h7 {[%clk 0:00:04]}  Re2+ {[%clk 0:00:04]} 49. Kd3 {[%clk 0:00:03]}  b1=Q+ {[%clk 0:00:03]} 50. Kxe2 {[%clk 0:00:03]}  Qe4+ {[%clk 0:00:04]} 51. Kxd1 {[%clk 0:00:03]}  Be3+ {[%clk 0:00:03]} 52. Ke2 {[%clk 0:00:02]}  Bxg5+ {[%clk 0:00:03]} 53. Kf1 {[%clk 0:00:03]}  Rd1+ {[%clk 0:00:04]} 54. Kf2 {[%clk 0:00:02]}  Bh4# {[%clk 0:00:05]} 0-1


[Site "https://www.chess.com"]

[Event "Titled Tuesday Blitz June 28 Early 2022"]
[White "Hamley, Ryan"]
[Black "Sanchez, Robert"]
[WhiteFideId "30959497"]
[BlackFideId "2034360"]
[WhiteElo "2481"]
[BlackElo "2083"]
[Result "1-0"]
[Round "10"]
[TimeControl "180+1"]
[Date "2022.06.28"]
[WhiteClock "0:00:49"]
[BlackClock "0:00:29"]

1. d4 {[%clk 0:03:00]}  e6 {[%clk 0:02:57]} 2. c4 {[%clk 0:03:00]}  d5 {[%clk 0:02:57]} 3. Nf3 {[%clk 0:03:00]}  Be7 {[%clk 0:02:58]} 4. g3 {[%clk 0:03:00]}  Nf6 {[%clk 0:02:58]} 5. Bg2 {[%clk 0:03:01]}  O-O {[%clk 0:02:59]} 6. O-O {[%clk 0:03:01]}  c6 {[%clk 0:02:59]} 7. Qc2 {[%clk 0:03:00]}  b6 {[%clk 0:02:59]} 8. Bf4 {[%clk 0:02:59]}  Bb7 {[%clk 0:02:59]} 9. Nbd2 {[%clk 0:02:59]}  Nbd7 {[%clk 0:03:00]} 10. Rad1 {[%clk 0:02:50]}  Qc8 {[%clk 0:02:49]} 11. Rfe1 {[%clk 0:02:43]}  c5 {[%clk 0:02:49]} 12. b3 {[%clk 0:02:38]}  cxd4 {[%clk 0:02:45]} 13. Ne5 {[%clk 0:02:32]}  Bb4 {[%clk 0:02:35]} 14. Rf1 {[%clk 0:02:23]}  h6 {[%clk 0:02:02]} 15. Ndf3 {[%clk 0:02:19]}  Nxe5 {[%clk 0:01:58]} 16. Bxe5 {[%clk 0:01:55]}  Nd7 {[%clk 0:01:54]} 17. Bxd4 {[%clk 0:01:54]}  dxc4 {[%clk 0:01:38]} 18. Qxc4 {[%clk 0:01:47]}  Qxc4 {[%clk 0:01:37]} 19. bxc4 {[%clk 0:01:47]}  Nc5 {[%clk 0:01:28]} 20. Ne5 {[%clk 0:01:26]}  Bxg2 {[%clk 0:01:27]} 21. Kxg2 {[%clk 0:01:26]}  Rac8 {[%clk 0:01:16]} 22. Bxc5 {[%clk 0:01:17]}  Bxc5 {[%clk 0:01:16]} 23. Nd7 {[%clk 0:01:08]}  Rfd8 {[%clk 0:01:12]} 24. Nxc5 {[%clk 0:01:07]}  Rxd1 {[%clk 0:01:12]} 25. Rxd1 {[%clk 0:01:06]}  Rxc5 {[%clk 0:01:12]} 26. Rd7 {[%clk 0:01:05]}  a5 {[%clk 0:01:07]} 27. Rb7 {[%clk 0:00:59]}  Rxc4 {[%clk 0:01:06]} 28. Rxb6 {[%clk 0:00:59]}  Ra4 {[%clk 0:01:04]} 29. Rb2 {[%clk 0:00:57]}  Kf8 {[%clk 0:01:04]} 30. Kf3 {[%clk 0:00:57]}  Ke7 {[%clk 0:01:04]} 31. Ke3 {[%clk 0:00:57]}  Kd6 {[%clk 0:01:05]} 32. Kd3 {[%clk 0:00:57]}  Kc5 {[%clk 0:01:05]} 33. Kc3 {[%clk 0:00:57]}  Ra3+ {[%clk 0:01:01]} 34. Kc2 {[%clk 0:00:55]}  Kc4 {[%clk 0:00:54]} 35. Kb1 {[%clk 0:00:55]}  Kc3 {[%clk 0:00:39]} 36. Rc2+ {[%clk 0:00:54]}  Kd4 {[%clk 0:00:38]} 37. Rc7 {[%clk 0:00:53]}  g5 {[%clk 0:00:29]} 38. Rxf7 {[%clk 0:00:52]}  Kc3 {[%clk 0:00:29]} 39. Rf3+ {[%clk 0:00:49]} 1-0


[Site "https://www.chess.com"]

[Event "Titled Tuesday Blitz June 28 Early 2022"]
[White "Heinemann, Josefine"]
[Black "Ciuffoletti, Paolo"]
[WhiteFideId "12900460"]
[BlackFideId "807630"]
[WhiteElo "2300"]
[BlackElo "2143"]
[Result "0-1"]
[Round "10"]
[TimeControl "180+1"]
[Date "2022.06.28"]
[WhiteClock "0:00:01"]
[BlackClock "0:00:22"]

1. Nf3 {[%clk 0:03:00]}  g6 {[%clk 0:02:58]} 2. d4 {[%clk 0:02:58]}  Bg7 {[%clk 0:02:58]} 3. h4 {[%clk 0:02:58]}  h5 {[%clk 0:02:56]} 4. c4 {[%clk 0:02:56]}  d6 {[%clk 0:02:54]} 5. Nc3 {[%clk 0:02:55]}  Nd7 {[%clk 0:02:53]} 6. Bg5 {[%clk 0:02:52]}  Nh6 {[%clk 0:02:47]} 7. Qd2 {[%clk 0:02:50]}  c5 {[%clk 0:02:38]} 8. e3 {[%clk 0:02:45]}  cxd4 {[%clk 0:02:30]} 9. exd4 {[%clk 0:02:44]}  Nf5 {[%clk 0:02:29]} 10. O-O-O {[%clk 0:02:40]}  Qa5 {[%clk 0:02:19]} 11. Re1 {[%clk 0:02:36]}  Nf6 {[%clk 0:02:16]} 12. Bd3 {[%clk 0:02:25]}  a6 {[%clk 0:02:11]} 13. Re2 {[%clk 0:02:00]}  b5 {[%clk 0:02:01]} 14. cxb5 {[%clk 0:01:59]}  O-O {[%clk 0:01:57]} 15. b6 {[%clk 0:01:51]}  Qxb6 {[%clk 0:01:39]} 16. Kb1 {[%clk 0:01:33]}  Nxd4 {[%clk 0:01:17]} 17. Nxd4 {[%clk 0:01:32]}  Qxd4 {[%clk 0:01:17]} 18. Rxe7 {[%clk 0:01:32]}  Rb8 {[%clk 0:01:10]} 19. Rhe1 {[%clk 0:01:09]}  Nd5 {[%clk 0:01:07]} 20. Kc1 {[%clk 0:00:34]}  Rxb2 {[%clk 0:00:51]} 21. Kxb2 {[%clk 0:00:19]}  Nxc3 {[%clk 0:00:39]} 22. Kc1 {[%clk 0:00:15]}  Be6 {[%clk 0:00:34]} 23. R1xe6 {[%clk 0:00:07]}  fxe6 {[%clk 0:00:31]} 24. Rxg7+ {[%clk 0:00:04]}  Qxg7 {[%clk 0:00:29]} 25. Bh6 {[%clk 0:00:04]}  Qc7 {[%clk 0:00:26]} 26. Bxf8 {[%clk 0:00:03]}  Ne4+ {[%clk 0:00:25]} 27. Qc2 {[%clk 0:00:03]}  Qxc2+ {[%clk 0:00:22]} 28. Kxc2 {[%clk 0:00:04]}  Nxf2 {[%clk 0:00:22]} 29. Bxd6 {[%clk 0:00:03]}  Kf7 {[%clk 0:00:21]} 30. Bxa6 {[%clk 0:00:04]}  Ng4 {[%clk 0:00:21]} 31. Be2 {[%clk 0:00:03]}  Ne3+ {[%clk 0:00:21]} 32. Kd2 {[%clk 0:00:02]}  Nxg2 {[%clk 0:00:22]} 33. a4 {[%clk 0:00:02]}  Nxh4 {[%clk 0:00:22]} 34. a5 {[%clk 0:00:03]}  Nf5 {[%clk 0:00:23]} 35. Be5 {[%clk 0:00:02]}  Ne7 {[%clk 0:00:23]} 36. a6 {[%clk 0:00:01]}  Nc6 {[%clk 0:00:23]} 37. Bc7 {[%clk 0:00:01]}  Ke7 {[%clk 0:00:23]} 38. Bf3 {[%clk 0:00:01]}  Kd7 {[%clk 0:00:23]} 39. Bh2 {[%clk 0:00:01]}  Nb4 {[%clk 0:00:22]} 0-1


[Site "https://www.chess.com"]

[Event "Titled Tuesday Blitz June 28 Early 2022"]
[White "Hoffmann, Asa"]
[Black "Antonio, Jorge Carlos"]
[WhiteFideId "2001470"]
[BlackFideId "113190"]
[WhiteElo "2117"]
[BlackElo "2247"]
[Result "1-0"]
[Round "10"]
[TimeControl "180+1"]
[Date "2022.06.28"]
[WhiteClock "0:01:07"]
[BlackClock "0:00:11"]

1. d4 {[%clk 0:02:55]}  e5 {[%clk 0:02:58]} 2. Nf3 {[%clk 0:02:51]}  e4 {[%clk 0:02:56]} 3. Nfd2 {[%clk 0:02:47]}  d5 {[%clk 0:02:56]} 4. Nb3 {[%clk 0:02:47]}  Bd6 {[%clk 0:02:52]} 5. g3 {[%clk 0:02:43]}  c6 {[%clk 0:02:51]} 6. Bg2 {[%clk 0:02:42]}  f5 {[%clk 0:02:51]} 7. N1d2 {[%clk 0:02:41]}  Nf6 {[%clk 0:02:51]} 8. c4 {[%clk 0:02:40]}  O-O {[%clk 0:02:40]} 9. cxd5 {[%clk 0:02:39]}  cxd5 {[%clk 0:02:36]} 10. Nf1 {[%clk 0:02:39]}  a5 {[%clk 0:02:32]} 11. a3 {[%clk 0:02:36]}  Nc6 {[%clk 0:02:29]} 12. Bg5 {[%clk 0:02:34]}  h6 {[%clk 0:02:29]} 13. Bxf6 {[%clk 0:02:34]}  Qxf6 {[%clk 0:02:27]} 14. e3 {[%clk 0:02:33]}  a4 {[%clk 0:02:20]} 15. Nbd2 {[%clk 0:02:31]}  g5 {[%clk 0:02:14]} 16. h4 {[%clk 0:02:29]}  f4 {[%clk 0:02:13]} 17. hxg5 {[%clk 0:02:29]}  Qxg5 {[%clk 0:02:09]} 18. Qh5 {[%clk 0:02:28]}  f3 {[%clk 0:02:05]} 19. Qxg5+ {[%clk 0:02:26]}  hxg5 {[%clk 0:01:58]} 20. Bh3 {[%clk 0:02:19]}  g4 {[%clk 0:01:58]} 21. Bxg4 {[%clk 0:02:16]}  Bxg4 {[%clk 0:01:57]} 22. Rh6 {[%clk 0:02:15]}  Be7 {[%clk 0:01:41]} 23. Rg6+ {[%clk 0:02:14]}  Kf7 {[%clk 0:01:40]} 24. Rxg4 {[%clk 0:02:14]}  b5 {[%clk 0:01:34]} 25. Rc1 {[%clk 0:02:12]}  Na5 {[%clk 0:01:32]} 26. Nb1 {[%clk 0:02:05]}  Nc4 {[%clk 0:01:31]} 27. Nc3 {[%clk 0:02:03]}  Nxb2 {[%clk 0:01:27]} 28. Rb1 {[%clk 0:01:36]}  Nd3+ {[%clk 0:01:18]} 29. Kd2 {[%clk 0:01:35]}  Nxf2 {[%clk 0:01:11]} 30. Rf4+ {[%clk 0:01:34]}  Kg8 {[%clk 0:00:44]} 31. Nxd5 {[%clk 0:01:31]}  Bxa3 {[%clk 0:00:26]} 32. Rxb5 {[%clk 0:01:30]}  Rab8 {[%clk 0:00:18]} 33. Rxf8+ {[%clk 0:01:22]}  Rxf8 {[%clk 0:00:15]} 34. Ra5 {[%clk 0:01:21]}  Bb2 {[%clk 0:00:14]} 35. Rxa4 {[%clk 0:01:21]}  Rc8 {[%clk 0:00:14]} 36. Ne7+ {[%clk 0:01:20]}  Kf7 {[%clk 0:00:14]} 37. Nxc8 {[%clk 0:01:20]}  Kg6 {[%clk 0:00:14]} 38. Nd6 {[%clk 0:01:19]}  Kg5 {[%clk 0:00:15]} 39. Ra5+ {[%clk 0:01:15]}  Kg4 {[%clk 0:00:16]} 40. Re5 {[%clk 0:01:12]}  Nd3 {[%clk 0:00:17]} 41. Rxe4+ {[%clk 0:01:11]}  Kh3 {[%clk 0:00:17]} 42. Kxd3 {[%clk 0:01:11]}  Kg2 {[%clk 0:00:16]} 43. Nd2 {[%clk 0:01:11]}  f2 {[%clk 0:00:15]} 44. Rf4 {[%clk 0:01:11]}  Bc1 {[%clk 0:00:15]} 45. Rxf2+ {[%clk 0:01:09]}  Kxf2 {[%clk 0:00:13]} 46. g4 {[%clk 0:01:08]}  Ba3 {[%clk 0:00:11]} 47. N6e4+ {[%clk 0:01:07]} 1-0


[Site "https://www.chess.com"]

[Event "Titled Tuesday Blitz June 28 Early 2022"]
[White "Horak, Martin"]
[Black "Silva, Pedro Gil Ferreira Da"]
[WhiteFideId "367095"]
[BlackFideId "1946102"]
[WhiteElo "1997"]
[BlackElo "1863"]
[Result "1-0"]
[Round "10"]
[TimeControl "180+1"]
[Date "2022.06.28"]
[WhiteClock "0:01:18"]
[BlackClock "0:01:54"]

1. e4 {[%clk 0:02:53]}  c6 {[%clk 0:02:59]} 2. Nf3 {[%clk 0:02:50]}  d5 {[%clk 0:02:59]} 3. Nc3 {[%clk 0:02:51]}  dxe4 {[%clk 0:02:59]} 4. Nxe4 {[%clk 0:02:51]}  g6 {[%clk 0:03:00]} 5. d4 {[%clk 0:02:41]}  Bg7 {[%clk 0:03:00]} 6. Bc4 {[%clk 0:02:40]}  Nf6 {[%clk 0:02:58]} 7. Nxf6+ {[%clk 0:02:39]}  Bxf6 {[%clk 0:02:54]} 8. Bh6 {[%clk 0:02:37]}  Nd7 {[%clk 0:02:53]} 9. Qe2 {[%clk 0:02:23]}  Nb6 {[%clk 0:02:50]} 10. Bb3 {[%clk 0:02:23]}  a5 {[%clk 0:02:46]} 11. a4 {[%clk 0:02:21]}  Bg4 {[%clk 0:02:44]} 12. Ne5 {[%clk 0:01:36]}  Qxd4 {[%clk 0:02:05]} 13. Bxf7+ {[%clk 0:01:25]}  Kd8 {[%clk 0:02:05]} 14. Nxg4 {[%clk 0:01:24]}  Qb4+ {[%clk 0:01:53]} 15. c3 {[%clk 0:01:18]}  Bxc3+ {[%clk 0:01:53]} 16. bxc3 {[%clk 0:01:18]}  Qxc3+ {[%clk 0:01:54]} 17. Qd2+ {[%clk 0:01:18]} 1-0


[Site "https://www.chess.com"]